bitfinex-derivatives/quotes_BTCF0:USTF0_20250416
["timestamp","ask_amount","ask_price","bid_price","bid_amount"]
[1744828925437,0.0596476,83824.0,83820.0,0.176]
[1744828925640,0.0596476,83824.0,83820.0,0.17608]
[1744828925641,0.4900994,83821.0,83820.0,0.17608]
[1744828925957,0.4900994,83821.0,83820.0,0.171]
[1744828926140,0.4910994,83821.0,83820.0,0.00108]
[1744828926340,0.8518994,83821.0,83820.0,1e-07]
[1744828926539,0.1193151,83810.0,83804.0,0.1418]
[1744828926746,0.4890165,83810.0,83806.0,0.000108]
[1744828927047,0.4990165,83810.0,83809.0,0.10521068]
[1744828927347,0.4990165,83810.0,83809.0,0.00338005]
[1744828927647,0.1193279,83801.0,83800.0,0.1]
[1744828927847,0.1293279,83801.0,83800.0,0.11]
[1744828928435,0.3899279,83801.0,83800.0,0.11]
[1744828928844,0.3899279,83801.0,83800.0,0.1]
[1744828929245,0.3899279,83801.0,83800.0,0.0208259]
[1744828929437,0.3909279,83801.0,83800.0,0.007]
[1744828929641,0.3909279,83801.0,83797.0,0.03462247]
[1744828929642,0.1193322,83798.0,83797.0,0.03462247]
[1744828929836,0.1193492,83786.0,83785.0,0.35343894]
[1744828930043,0.1193663,83774.0,83773.0,0.21406824]
[1744828930242,0.1193749,83768.0,83767.0,0.62235726]
[1744828930437,0.1539712,83768.0,83767.0,0.62235726]
[1744828930951,0.1539712,83768.0,83767.0,0.24057136]
[1744828930952,0.6645712,83768.0,83767.0,0.24057136]
[1744828931248,0.1193891,83758.0,83752.0,0.000108]
[1744828931439,0.4801891,83758.0,83744.0,0.29997461]
[1744828931841,0.4801891,83758.0,83757.0,7e-08]
[1744828932048,0.7301891,83758.0,83757.0,7e-08]
[1744828932246,0.1194077,83745.0,83744.0,0.29791772]
[1744828932446,0.4902077,83745.0,83744.0,0.29791772]
[1744828932840,0.4902077,83745.0,83744.0,0.29799772]
[1744828933145,0.7532077,83745.0,83744.0,0.2995027]
[1744828933349,0.7542077,83745.0,83744.0,0.2995027]
[1744828933845,0.7542077,83745.0,83744.0,0.2533273]
[1744828934050,0.1194333,83727.0,83726.0,0.01]
[1744828934242,0.7316,83727.0,83708.0,0.01]
[1744828934441,0.1194619,83707.0,83706.0,0.1421]
[1744828934649,0.0597295,83709.0,83706.0,0.1621]
[1744828934847,0.1194619,83707.0,83706.0,0.1621]
[1744828935542,0.1194633,83706.0,83694.0,0.99877233]
[1744828935740,0.2546633,83706.0,83695.0,0.2684]
[1744828936043,0.2546633,83706.0,83705.0,0.00521706]
[1744828936242,0.1194647,83705.0,83699.0,0.000108]
[1744828936442,0.1194647,83705.0,83704.0,0.26777524]
[1744828936642,0.3694647,83705.0,83704.0,0.1601306]
[1744828936838,0.5046647,83705.0,83704.0,8e-05]
[1744828937152,0.119499,83681.0,83668.0,0.12608]
[1744828937447,0.1195004,83680.0,83671.0,0.1387]
[1744828937639,0.4090004,83680.0,83674.0,0.3608]
[1744828937845,0.7698004,83680.0,83671.0,0.1387]
[1744828938042,0.4090004,83680.0,83679.0,0.00513865]
[1744828938350,0.7698004,83680.0,83679.0,0.00521865]
[1744828938557,0.7698004,83680.0,83679.0,0.00513865]
[1744828938852,0.7708004,83680.0,83679.0,0.00521865]
[1744828939051,0.7708004,83680.0,83679.0,5e-08]
[1744828939251,0.1195133,83671.0,83670.0,6.805e-05]
[1744828939449,0.3608,83671.0,83661.0,0.4803272]
[1744828939754,0.0597404,83694.0,83661.0,0.4803272]
[1744828939755,0.0597412,83693.0,83683.0,0.119496]
[1744828939941,0.1194947,83684.0,83683.0,0.03]
[1744828940545,0.1195119,83672.0,83671.0,0.1416]
[1744828940741,0.1195119,83672.0,83671.0,0.01]
[1744828940944,0.1195247,83663.0,83662.0,0.131]
[1744828941148,0.1195228,83665.0,83662.0,0.171]
[1744828941349,0.13543342,83665.0,83664.0,0.3608]
[1744828941549,0.00889431,83666.0,83664.0,0.3808]
[1744828941750,0.0001792,83671.0,83667.0,0.1195183]
[1744828942052,0.01621991,83675.0,83674.0,0.119509]
[1744828942254,0.0597505,83680.0,83675.0,0.1195068]
[1744828942456,0.01621033,83687.0,83676.0,0.1258]
[1744828942751,0.1306,83699.0,83686.0,0.3608]
[1744828942954,0.0001792,83701.0,83693.0,0.3608]
[1744828943158,0.0001792,83701.0,83700.0,0.1194719]
[1744828943359,0.005,83708.0,83707.0,0.1194619]
[1744828943559,0.005,83708.0,83707.0,0.5102619]
[1744828944057,0.45068097,83724.0,83707.0,0.9091]
[1744828944250,0.09006017,83724.0,83723.0,0.4802391]
[1744828944555,0.4802376,83724.0,83723.0,0.1394386]
[1744828944852,0.1194376,83724.0,83723.0,0.02]
[1744828945053,0.4802376,83724.0,83723.0,0.02008]
[1744828945259,0.1194376,83724.0,83723.0,0.02008]
[1744828945751,0.3906376,83724.0,83723.0,0.02208]
[1744828945954,0.7514376,83724.0,83723.0,0.022]
[1744828946150,0.7514376,83724.0,83723.0,0.00208]
[1744828946351,0.1373,83724.0,83723.0,0.1215191]
[1744828946552,0.1204376,83724.0,83723.0,0.4923191]
[1744828946855,0.1204376,83724.0,83723.0,0.1315191]
[1744828947154,0.0598926,83732.0,83729.0,0.1194305]
[1744828947356,0.0001792,83732.0,83731.0,0.1194276]
[1744828947656,0.3608,83751.0,83750.0,0.1194005]
[1744828947857,0.00916003,83752.0,83750.0,0.02]
[1744828948050,0.0596982,83753.0,83752.0,0.1193977]
[1744828948253,0.0596982,83753.0,83750.0,0.0796997]
[1744828948254,0.0597009,83750.0,83733.0,0.01]
[1744828948447,0.1791115,83748.0,83747.0,0.1194048]
[1744828948649,0.1193906,83757.0,83756.0,0.0596958]
[1744828948848,0.1791018,83752.0,83751.0,0.1790911]
[1744828949057,0.0596998,83752.0,83751.0,0.0696977]
[1744828949251,0.0001792,83756.0,83755.0,0.1193934]
[1744828949451,0.1195712,83756.0,83755.0,0.1293934]
[1744828949660,0.0001792,83756.0,83755.0,0.1293934]
[1744828949853,0.005,83760.0,83759.0,0.1193877]
[1744828950158,0.3608,83776.0,83770.0,0.119372]
[1744828950348,0.4801706,83771.0,83770.0,0.02]
[1744828950547,0.4801706,83771.0,83770.0,0.139372]
[1744828950857,0.4801706,83771.0,83770.0,0.02]
[1744828950858,0.1193706,83771.0,83770.0,0.02]
[1744828951061,0.00017909,83779.0,83770.0,0.02]
[1744828951261,0.00017909,83779.0,83778.0,0.1193606]
[1744828951461,0.11953829,83779.0,83778.0,0.4901606]
[1744828951661,0.11953829,83779.0,83778.0,0.3608]
[1744828951853,0.12845494,83779.0,83778.0,0.01]
[1744828952161,0.13545494,83779.0,83778.0,0.01]
[1744828952358,0.13545494,83779.0,83778.0,0.01008]
[1744828952562,0.13545494,83779.0,83778.0,0.01]
[1744828952866,0.12153829,83779.0,83778.0,0.1294406]
[1744828953158,0.13345315,83779.0,83778.0,0.01008]
[1744828953360,0.13345315,83779.0,83778.0,0.01]
[1744828953559,0.1193663,83774.0,83773.0,0.119367]
[1744828953863,0.1193663,83774.0,83773.0,0.129367]
[1744828954361,0.1193663,83774.0,83773.0,0.01]
[1744828954664,0.1193663,83774.0,83773.0,0.1293678]
[1744828954853,0.1193663,83774.0,83773.0,0.01]
[1744828955057,0.1193663,83774.0,83773.0,0.1293678]
[1744828955368,0.1193735,83770.0,83769.0,0.1193727]
[1744828955866,0.3979735,83770.0,83769.0,0.1193727]
[1744828956060,0.0596894,83766.0,83755.0,0.0001458]
[1744828956263,0.6990861,83770.0,83761.0,0.0596923]
[1744828956264,0.1423,83765.0,83761.0,0.0596923]
[1744828956558,0.1399,83764.0,83763.0,0.1193806]
[1744828957063,0.3608,83771.0,83770.0,0.119372]
[1744828957261,0.001,83774.0,83773.0,0.1193678]
[1744828957450,0.2822,83778.0,83777.0,0.1193621]
[1744828957654,0.4015618,83778.0,83777.0,0.1193621]
[1744828957852,0.2822,83778.0,83761.0,0.0597718]
[1744828958050,0.119372,83770.0,83769.0,0.0706861]
[1744828958267,0.29902813,83770.0,83762.0,0.07864605]
[1744828958459,0.29902813,83770.0,83769.0,0.1193706]
[1744828958659,0.23934123,83770.0,83769.0,0.1293706]
[1744828959060,0.60014123,83770.0,83769.0,0.01]
[1744828959561,0.60014123,83770.0,83769.0,0.01008]
[1744828959763,0.11996923,83770.0,83769.0,0.1294535]
[1744828960067,0.11996923,83770.0,83769.0,0.4902535]
[1744828960366,0.12845365,83779.0,83769.0,0.4902535]
[1744828960367,0.04934042,83771.0,83770.0,0.119372]
[1744828960560,0.04934042,83771.0,83770.0,0.159372]
[1744828960761,0.04934042,83771.0,83770.0,0.059686]
[1744828960963,0.04934042,83771.0,83770.0,0.159372]
[1744828961357,0.18072924,83775.0,83774.0,0.1193663]
[1744828961664,0.3608,83790.0,83774.0,0.1193663]
[1744828961665,0.00909187,83791.0,83785.0,0.1193507]
[1744828961854,0.00909187,83791.0,83785.0,0.1493507]
[1744828962055,0.1193444,83790.0,83785.0,0.1493507]
[1744828962255,0.0596706,83792.0,83785.0,0.1493507]
[1744828962256,0.12010421,83794.0,83785.0,0.4166507]
[1744828962452,0.01585176,83793.0,83785.0,0.4166507]
[1744828962963,0.12010421,83794.0,83793.0,0.1193393]
[1744828963263,0.1,83800.0,83793.0,0.03]
[1744828963469,0.3608,83819.0,83808.0,0.1193179]
[1744828963863,0.19575743,83809.0,83808.0,0.1193179]
[1744828964163,0.19575743,83809.0,83808.0,0.4901179]
[1744828964164,0.18015632,83809.0,83808.0,0.4901179]
[1744828964461,0.31553213,83809.0,83808.0,0.01]
[1744828964664,0.55701563,83809.0,83801.0,0.0596636]
[1744828964861,0.18015632,83809.0,83808.0,0.1193179]
[1744828965166,0.18015632,83809.0,83808.0,0.1293179]
[1744828965964,0.30347282,83809.0,83808.0,0.1303179]
[1744828966164,0.1233165,83809.0,83808.0,0.1303179]
[1744828966468,0.001,83809.0,83808.0,0.4911979]
[1744828966767,0.001,83809.0,83808.0,0.1303979]
[1744828967163,0.001,83809.0,83808.0,0.3989979]
[1744828967464,0.001,83809.0,83808.0,0.7597979]
[1744828967660,0.005,83812.0,83811.0,0.1193136]
[1744828967865,0.005,83812.0,83811.0,0.1393136]
[1744828968051,8e-08,83813.0,83812.0,0.1193122]
[1744828968256,8e-08,83813.0,83812.0,0.4154122]
[1744828969172,0.61051088,83813.0,83812.0,0.02008]
[1744828969468,0.61051088,83813.0,83812.0,0.1393922]
[1744828969669,0.61051088,83813.0,83812.0,0.02008]
[1744828969968,0.1193222,83805.0,83804.0,0.1193236]
[1744828970270,0.1193222,83805.0,83797.0,0.00017898]
[1744828970271,0.1193322,83798.0,83797.0,0.00017898]
[1744828970467,0.4801322,83798.0,83797.0,0.00017898]
[1744828970665,0.4801322,83798.0,83778.0,0.01]
[1744828970666,0.1193521,83784.0,83778.0,0.01]
[1744828970976,0.1193521,83784.0,83776.0,0.3608]
[1744828971159,0.1193521,83784.0,83783.0,0.12456578]
[1744828971463,0.1301,83785.0,83783.0,0.12456578]
[1744828971464,0.1301,83785.0,83784.0,0.1193521]
[1744828971769,0.1789728,83813.0,83812.0,0.0596551]
[1744828972068,0.1193073,83816.0,83815.0,0.1193079]
[1744828972269,0.1193073,83816.0,83815.0,1.6193079]
[1744828973561,0.1223073,83816.0,83815.0,1.6203079]
[1744828973768,0.39921378,83816.0,83815.0,1.6203079]
[1744828974164,0.2655,83816.0,83815.0,1.6303079]
[1744828974361,0.2655,83816.0,83815.0,0.1303079]
[1744828975066,0.2655,83816.0,83815.0,0.1293079]
[1744828975469,0.2655,83816.0,83815.0,0.2613079]
[1744828975669,0.2655,83816.0,83815.0,0.1293079]
[1744828975670,0.3848065,83816.0,83815.0,0.1293079]
[1744828975971,0.3838065,83816.0,83815.0,0.1313879]
[1744828976566,0.3818065,83816.0,83815.0,0.1333079]
[1744828976769,0.3818065,83816.0,83815.0,0.1333879]
[1744828977368,0.3818065,83816.0,83815.0,0.1323879]
[1744828977561,0.3818065,83816.0,83815.0,0.01308]
[1744828977762,0.3818065,83816.0,83815.0,0.1323879]
[1744828977966,0.3808065,83816.0,83815.0,0.01008]
[1744828978158,0.3838065,83816.0,83815.0,0.01008]
[1744828978364,0.3838065,83816.0,83815.0,0.1293879]
[1744828978666,0.2635,83816.0,83815.0,0.1303879]
[1744828978857,0.3828065,83816.0,83815.0,0.1303879]
[1744828979059,0.3828065,83816.0,83815.0,0.1293879]
[1744828979661,0.3808065,83816.0,83815.0,0.1293879]
[1744828979859,0.3808065,83816.0,83815.0,0.1303879]
[1744828980263,0.2615,83816.0,83815.0,0.1303879]
[1744828980873,0.3808065,83816.0,83815.0,0.1313879]
[1744828981070,0.3808065,83816.0,83815.0,0.01208]
[1744828981371,0.3808065,83816.0,83815.0,0.1313079]
[1744828981572,0.3808065,83816.0,83815.0,0.1303879]
[1744828981869,0.3818065,83816.0,83815.0,0.1313879]
[1744828982063,0.3818065,83816.0,83815.0,0.01208]
[1744828982264,0.3818065,83816.0,83815.0,0.00208]
[1744828982472,0.3818065,83816.0,83790.0,0.05986823]
[1744828982473,1.04922,83816.0,83768.0,0.4176]
[1744828982664,0.4801521,83784.0,83782.0,0.00026572]
[1744828982973,0.4801521,83784.0,83765.0,0.0596892]
[1744828982974,0.1193792,83766.0,83765.0,0.0596892]
[1744828983166,0.0596895,83766.0,83765.0,0.01]
[1744828983369,0.0596895,83766.0,83746.0,0.01]
[1744828983370,0.0596926,83761.0,83747.0,0.059702]
[1744828983563,0.4802034,83748.0,83747.0,0.069702]
[1744828983770,0.0596967,83755.0,83750.0,0.1194005]
[1744828983771,0.0596997,83751.0,83750.0,0.1194005]
[1744828983966,0.4204997,83751.0,83750.0,0.01]
[1744828984273,0.4204997,83751.0,83739.0,0.00017909]
[1744828984274,0.1194148,83740.0,83739.0,0.00017909]
[1744828984464,0.1194148,83740.0,83739.0,0.01017909]
[1744828985075,0.1194148,83740.0,83739.0,0.01025909]
[1744828985271,0.1194348,83726.0,83725.0,0.11439207]
[1744828985469,0.4802348,83726.0,83725.0,0.13439207]
[1744828985866,0.3608,83726.0,83725.0,0.02]
[1744828986071,0.4802348,83726.0,83725.0,0.1395162]
[1744828986272,0.14452747,83727.0,83726.0,0.1194348]
[1744828986472,0.14452747,83727.0,83726.0,0.1294348]
[1744828987273,0.1291,83727.0,83726.0,0.1294348]
[1744828987477,0.00017909,83734.0,83733.0,0.1194248]
[1744828987679,0.1337,83749.0,83742.0,0.0597059]
[1744828987977,0.1337,83749.0,83748.0,0.1194034]
[1744828988178,0.1337,83749.0,83748.0,0.1394034]
[1744828988488,0.1337,83749.0,83735.0,0.0597109]
[1744828988489,0.0597037,83746.0,83735.0,0.0597109]
[1744828988781,0.1337,83749.0,83742.0,0.0607054]
[1744828988782,0.4945,83745.0,83742.0,0.0607054]
[1744828988982,0.4945,83745.0,83744.0,0.1194091]
[1744828989284,0.1337,83745.0,83744.0,0.1294091]
[1744828989481,0.6139077,83745.0,83744.0,0.01]
[1744828989781,0.1194205,83736.0,83735.0,8e-05]
[1744828989976,0.1194205,83736.0,83735.0,0.01]
[1744828989977,0.4802205,83736.0,83735.0,0.01]
[1744828990170,0.4802205,83736.0,83735.0,8e-05]
[1744828990381,0.4802205,83736.0,83708.0,0.00046255]
[1744828990382,0.3608,83736.0,83708.0,0.0597301]
[1744828990579,0.4802476,83717.0,83716.0,0.02]
[1744828991187,0.4802476,83717.0,83716.0,0.139449]
[1744828991579,0.4802476,83717.0,83716.0,0.021]
[1744828992287,0.4812476,83717.0,83716.0,0.02108]
[1744828992484,0.119459,83709.0,83708.0,0.00017909]
[1744828992781,0.00888785,83709.0,83708.0,0.11963959]
[1744828992986,0.1339,83716.0,83715.0,0.1194505]
[1744828993171,0.14300656,83716.0,83715.0,0.1194505]
[1744828993376,0.26245556,83716.0,83715.0,0.1194505]
[1744828993577,0.1194576,83711.0,83710.0,0.1194576]
[1744828993775,0.1194576,83711.0,83710.0,0.1294576]
[1744828994282,0.1339,83711.0,83710.0,0.1294576]
[1744828994484,0.00910656,83716.0,83715.0,0.1194505]
[1744828994689,0.2533439,83720.0,83719.0,0.1194448]
[1744828994992,0.2533439,83720.0,83719.0,0.1294448]
[1744828995283,0.1339,83720.0,83719.0,0.1294448]
[1744828995492,0.26223115,83720.0,83719.0,0.1294448]
[1744828995984,0.26323115,83720.0,83719.0,0.1294448]
[1744828996193,0.001,83720.0,83719.0,0.1294448]
[1744828996483,0.3618,83720.0,83719.0,0.1294448]
[1744828996687,0.001,83720.0,83719.0,0.3820448]
[1744828997276,0.001,83720.0,83719.0,0.3830448]
[1744828997483,0.3608,83744.0,83719.0,0.5736]
[1744828997782,0.3608,83753.0,83752.0,0.1193977]
[1744828997783,0.37607625,83753.0,83752.0,0.1193977]
[1744828997979,0.15017081,83763.0,83752.0,0.1193977]
[1744828997980,0.1327,83762.0,83759.0,0.1193877]
[1744828998182,0.15017081,83763.0,83759.0,0.5001877]
[1744828998380,0.15017081,83763.0,83762.0,0.1193834]
[1744828998577,0.15017081,83763.0,83762.0,0.1493834]
[1744828999083,0.3608,83780.0,83762.0,0.1493834]
[1744828999084,0.1332,83779.0,83778.0,0.1193606]
[1744828999281,0.37594572,83780.0,83778.0,0.02]
[1744828999586,0.01514572,83780.0,83779.0,0.1193592]
[1744828999789,0.14999608,83783.0,83782.0,0.1193549]
[1744828999992,0.14999608,83783.0,83782.0,0.1393549]
[1744829000891,0.1332,83785.0,83784.0,0.1193521]
[1744829001080,0.2525507,83785.0,83784.0,0.01]
[1744829001286,0.1332,83785.0,83782.0,0.002]
[1744829001585,0.1332,83785.0,83784.0,0.1194321]
[1744829001779,0.2525507,83785.0,83784.0,0.1194321]
[1744829002285,0.2525507,83785.0,83784.0,8e-05]
[1744829002487,0.1193535,83783.0,83782.0,0.001]
[1744829003288,0.2501535,83783.0,83782.0,0.001]
[1744829003897,0.1790465,83777.0,83776.0,0.1193634]
[1744829004090,0.5398465,83777.0,83776.0,0.1193634]
[1744829004289,0.1193649,83775.0,83774.0,0.00017909]
[1744829004496,0.1193649,83775.0,83774.0,0.11954539]
[1744829004914,0.621,83777.0,83774.0,0.05986159]
[1744829005122,0.621,83777.0,83776.0,0.1193635]
[1744829005325,0.622,83777.0,83776.0,0.1193635]
[1744829006111,0.001,83777.0,83776.0,0.1393635]
[1744829006699,0.1214,83780.0,83779.0,0.1193592]
[1744829006905,0.1214,83780.0,83779.0,0.1293592]
[1744829007293,0.1289,83790.0,83785.0,0.1193507]
[1744829007495,0.1289,83790.0,83785.0,0.5101507]
[1744829007692,0.1243492,83786.0,83785.0,0.1493507]
[1744829008093,0.1243492,83786.0,83785.0,0.03]
[1744829008292,0.1193578,83780.0,83779.0,0.001]
[1744829008500,0.4801578,83780.0,83779.0,0.001]
[1744829008690,0.4801578,83780.0,83779.0,0.00108]
[1744829008895,0.4801578,83780.0,83779.0,0.001]
[1744829009090,0.4801578,83780.0,83779.0,0.00108]
[1744829009491,0.4801578,83780.0,83779.0,8e-05]
[1744829009894,0.3608,83780.0,83779.0,8e-05]
[1744829010198,0.2578,83785.0,83784.0,0.1193521]
[1744829010398,0.009,83786.0,83785.0,0.1193507]
[1744829010600,0.4851492,83786.0,83785.0,0.02]
[1744829011092,0.1193578,83780.0,83779.0,0.001]
[1744829011292,0.0596753,83785.0,83770.0,0.000108]
[1744829011293,0.1193649,83775.0,83774.0,0.11954539]
[1744829011493,0.1193649,83775.0,83774.0,0.12954539]
[1744829011798,0.1193649,83775.0,83774.0,0.12962539]
[1744829012198,0.1238,83779.0,83778.0,0.1193606]
[1744829012400,0.1382,83785.0,83784.0,0.1193521]
[1744829012603,0.1342,83785.0,83784.0,0.1293521]
[1744829013003,0.3608,83785.0,83784.0,0.1293521]
[1744829013308,0.1243492,83786.0,83785.0,0.1193507]
[1744829013503,0.4851492,83786.0,83785.0,0.1393507]
[1744829014005,0.4851492,83786.0,83785.0,0.02]
[1744829014199,0.1193507,83785.0,83784.0,0.001]
[1744829014399,0.2443507,83785.0,83784.0,0.001]
[1744829014601,0.3661507,83785.0,83784.0,0.00108]
[1744829014794,0.3661507,83785.0,83784.0,0.1204321]
[1744829014999,0.2468,83785.0,83784.0,0.1303521]
[1744829015208,0.6076,83785.0,83784.0,0.1294321]
[1744829015402,0.7269507,83785.0,83784.0,0.1294321]
[1744829015600,0.6076,83785.0,83784.0,0.1294321]
[1744829016018,0.6076,83785.0,83784.0,0.3814321]
[1744829016199,0.7269507,83785.0,83784.0,0.1294321]
[1744829016399,0.7279507,83785.0,83784.0,0.1294321]
[1744829016708,0.6086,83785.0,83784.0,0.1294321]
[1744829017100,0.6086,83785.0,83784.0,0.3859321]
[1744829017299,0.3618,83785.0,83784.0,0.3859321]
[1744829017505,0.001,83785.0,83784.0,0.3859321]
[1744829017708,0.00933304,83791.0,83784.0,0.62738]
[1744829017902,0.00933304,83791.0,83790.0,0.1193435]
[1744829017903,0.00017909,83791.0,83790.0,0.1193435]
[1744829018208,0.00017909,83791.0,83790.0,0.1693435]
[1744829018402,0.00017909,83791.0,83790.0,0.4258435]
[1744829018800,0.11952119,83791.0,83790.0,0.1693435]
[1744829019001,0.12352119,83791.0,83790.0,0.1693435]
[1744829019203,0.37592119,83791.0,83790.0,0.1694235]
[1744829019707,0.37492119,83791.0,83790.0,0.1694235]
[1744829021297,0.37592119,83791.0,83790.0,0.1694235]
[1744829021703,0.26443498,83791.0,83790.0,0.1694235]
[1744829022205,0.26343498,83791.0,83790.0,0.1694235]
[1744829022907,0.38277708,83791.0,83790.0,0.1693435]
[1744829023108,0.38277708,83791.0,83790.0,0.1694235]
[1744829023497,0.38277708,83791.0,83790.0,0.05008]
[1744829024009,0.1193578,83780.0,83779.0,0.11106584]
[1744829024211,0.4801578,83780.0,83779.0,0.13106584]
[1744829024601,0.3608,83780.0,83779.0,0.13106584]
[1744829024802,0.7280578,83780.0,83779.0,0.13106584]
[1744829025212,0.7280578,83780.0,83779.0,0.13206584]
[1744829025605,0.6087,83780.0,83779.0,0.13206584]
[1744829025801,0.3608,83784.0,83779.0,0.021]
[1744829026012,0.3608,83784.0,83783.0,0.1193535]
[1744829026306,0.00903498,83791.0,83790.0,0.1193435]
[1744829026504,0.00903498,83791.0,83790.0,0.1293435]
[1744829027004,0.00903498,83791.0,83790.0,0.3812435]
[1744829029309,0.01003498,83791.0,83790.0,0.3812435]
[1744829031414,0.01003498,83791.0,83790.0,0.1293435]
[1744829032315,0.01003498,83791.0,83790.0,0.3760435]
[1744829033310,0.01003498,83791.0,83790.0,0.1293435]
[1744829033515,0.12937708,83791.0,83790.0,0.01]
[1744829033909,0.39067708,83791.0,83790.0,0.01]
[1744829034208,0.39067708,83791.0,83790.0,0.01008]
[1744829034408,0.39067708,83791.0,83790.0,8e-05]
[1744829035516,0.1193464,83788.0,83787.0,0.1193477]
[1744829035710,0.4801464,83788.0,83787.0,0.1193477]
[1744829035912,0.1790339,83783.0,83782.0,0.0596769]
[1744829036302,0.1790339,83783.0,83782.0,0.0696769]
[1744829037007,0.1790339,83783.0,83782.0,0.01]
[1744829037314,0.1790339,83783.0,83782.0,0.1293549]
[1744829037610,0.3608,83785.0,83782.0,0.1293549]
[1744829037611,0.3608,83785.0,83784.0,0.1193521]
[1744829037915,0.6171,83788.0,83787.0,0.1193478]
[1744829037916,0.2563,83788.0,83787.0,0.1193478]
[1744829038117,0.2563,83788.0,83787.0,0.1293478]
[1744829038414,0.2563,83788.0,83787.0,0.01]
[1744829038415,0.3756464,83788.0,83787.0,0.01]
[1744829038713,0.3756464,83788.0,83787.0,0.1293478]
[1744829038907,0.3756464,83788.0,83787.0,0.01]
[1744829039108,0.3756464,83788.0,83787.0,0.01008]
[1744829039410,0.3756464,83788.0,83787.0,0.1204278]
[1744829039618,0.3756464,83788.0,83787.0,0.1203478]
[1744829039911,0.3776464,83788.0,83787.0,0.1193478]
[1744829040105,0.3776464,83788.0,83787.0,0.1194278]
[1744829040411,0.3786464,83788.0,83787.0,0.1194278]
[1744829041006,0.3776464,83788.0,83787.0,0.1194278]
[1744829041204,0.3786464,83788.0,83787.0,0.1194278]
[1744829041916,0.2573,83788.0,83787.0,0.1194278]
[1744829042114,0.2593,83788.0,83787.0,0.1294278]
[1744829042306,0.1261,83788.0,83787.0,0.3927278]
[1744829043009,0.4869,83788.0,83787.0,0.3927278]
[1744829043409,0.1261,83788.0,83787.0,0.3927278]
[1744829043718,0.1251,83788.0,83787.0,0.3927278]
[1744829043904,0.002,83788.0,83787.0,0.3927278]
[1744829044111,0.01547217,83794.0,83787.0,0.5930535]
[1744829044314,0.3608,83798.0,83797.0,0.1193336]
[1744829044521,0.3608,83798.0,83797.0,0.1393336]
[1744829045020,0.37587735,83798.0,83797.0,0.1393336]
[1744829045319,0.37587735,83798.0,83797.0,0.4017336]
[1744829045913,0.3608,83798.0,83797.0,0.4017336]
[1744829046113,0.3638,83798.0,83797.0,0.4017336]
[1744829046709,0.3648,83798.0,83797.0,0.4017336]
[1744829046911,0.49294483,83798.0,83797.0,0.02]
[1744829047112,0.1193549,83782.0,83781.0,0.1293564]
[1744829047312,0.0596789,83780.0,83778.0,0.000108]
[1744829047516,0.1193592,83779.0,83778.0,0.010108]
[1744829047818,0.1193592,83779.0,83778.0,0.1294406]
[1744829048013,0.1193592,83779.0,83778.0,0.1293606]
[1744829048210,0.0596782,83781.0,83780.0,0.1193578]
[1744829048416,0.3608,83782.0,83781.0,0.1193564]
[1744829048718,0.3608,83782.0,83781.0,0.1293564]
[1744829048719,0.4801549,83782.0,83781.0,0.1293564]
[1744829049110,0.4801549,83782.0,83781.0,0.1203564]
[1744829050009,0.4801549,83782.0,83781.0,0.001]
[1744829050209,0.8409549,83782.0,83781.0,0.001]
[1744829050811,0.8419549,83782.0,83781.0,0.00408]
[1744829051410,0.7226,83782.0,83781.0,0.1234364]
[1744829051620,0.7216,83782.0,83781.0,0.1304364]
[1744829051917,0.7246,83782.0,83781.0,0.1314364]
[1744829052119,0.7256,83782.0,83781.0,0.1304364]
[1744829052320,0.3638,83782.0,83781.0,0.01108]
[1744829052622,0.8439549,83782.0,83781.0,0.00108]
[1744829052822,0.8429549,83782.0,83781.0,0.00108]
[1744829053022,0.8429549,83782.0,83781.0,0.001]
[1744829053716,0.8429549,83782.0,83779.0,0.1193588]
[1744829053717,0.1193606,83778.0,83777.0,0.119361]
[1744829053912,0.1193649,83775.0,83774.0,0.00017909]
[1744829054119,0.4801649,83775.0,83774.0,0.00017909]
[1744829054720,0.4801649,83775.0,83774.0,0.00025909]
[1744829055215,0.4801649,83775.0,83774.0,0.11962539]
[1744829055819,0.4864,83775.0,83774.0,0.11962539]
[1744829056023,0.4874,83775.0,83774.0,0.11962539]
[1744829056426,0.6067649,83775.0,83774.0,0.11962539]
[1744829056726,0.6087649,83775.0,83774.0,0.00125909]
[1744829056925,0.6087649,83775.0,83774.0,0.00117909]
[1744829057118,0.6087649,83775.0,83774.0,0.11962539]
[1744829057119,0.6067649,83775.0,83774.0,0.11962539]
[1744829057319,0.6077649,83775.0,83774.0,0.11962539]
[1744829058214,0.6087649,83775.0,83774.0,0.12062539]
[1744829058427,0.6077649,83775.0,83774.0,0.12062539]
[1744829059823,0.6087649,83775.0,83774.0,0.11962539]
[1744829060015,0.6087649,83775.0,83774.0,0.12062539]
[1744829060223,0.6087649,83775.0,83774.0,0.00125909]
[1744829060516,0.6087649,83775.0,83774.0,0.00025909]
[1744829060517,0.6077649,83775.0,83774.0,0.00025909]
[1744829060921,0.6077649,83775.0,83774.0,0.00017909]
[1744829061116,0.4884,83775.0,83774.0,0.11962539]
[1744829061518,0.6067649,83775.0,83774.0,0.11962539]
[1744829061826,0.7421649,83775.0,83774.0,0.11962539]
[1744829064330,0.7411649,83775.0,83774.0,0.11962539]
[1744829064628,0.7421649,83775.0,83774.0,0.11962539]
[1744829064820,0.7431649,83775.0,83774.0,0.11962539]
[1744829065021,0.6238,83775.0,83774.0,0.11962539]
[1744829065220,0.3628,83775.0,83774.0,0.17962539]
[1744829065421,0.3628,83775.0,83774.0,0.42192539]
[1744829065930,0.3618,83775.0,83774.0,0.42192539]
[1744829066426,0.3608,83775.0,83774.0,0.42192539]
[1744829066620,0.3618,83775.0,83774.0,0.42492539]
[1744829067729,0.3608,83775.0,83774.0,0.42192539]
[1744829067930,0.3618,83775.0,83774.0,0.42592539]
[1744829069142,0.4811649,83775.0,83774.0,0.42592539]
[1744829069329,0.3618,83775.0,83774.0,0.42592539]
[1744829070728,0.3618,83775.0,83774.0,0.42492539]
[1744829070927,0.3618,83775.0,83774.0,0.42592539]
[1744829071534,0.3618,83775.0,83774.0,0.43492539]
[1744829071728,0.3618,83775.0,83774.0,0.43592539]
[1744829074931,0.00011333,83787.0,83774.0,0.31655909]
[1744829075127,0.00011333,83787.0,83786.0,0.1193492]
[1744829075333,0.00011333,83787.0,83786.0,0.1693492]
[1744829075632,0.00011333,83787.0,83786.0,0.4137492]
[1744829076139,0.11946113,83787.0,83786.0,0.1693492]
[1744829076330,0.00011333,83787.0,83786.0,0.1693492]
[1744829076732,0.00011333,83787.0,83786.0,0.1703492]